bitfinex/quotes_BTCUSD_20250814
["timestamp","ask_amount","ask_price","bid_price","bid_amount"]
[1755183000115,0.78329798,119210.0,119200.0,0.00014821]
[1755183000337,0.78159798,119210.0,119200.0,0.00014821]
[1755183000555,0.92795798,119210.0,119200.0,0.00014821]
[1755183002364,1.57191574,119210.0,119200.0,0.00014821]
[1755183002600,1.58758093,119210.0,119200.0,1e-08]
[1755183002814,1.53719093,119210.0,119200.0,1e-08]
[1755183004669,1.56237293,119210.0,119200.0,1e-08]
[1755183005542,1.59192293,119210.0,119200.0,1e-08]
[1755183005752,0.52524833,119190.0,119180.0,0.0004]
[1755183005962,1.43813771,119190.0,119180.0,1e-08]
[1755183006413,0.52529057,119160.0,119150.0,0.0004]
[1755183006627,0.52529057,119160.0,119150.0,0.00564]
[1755183006628,0.60801382,119160.0,119150.0,0.00564]
[1755183007130,0.63320282,119160.0,119150.0,0.00564]
[1755183007557,0.63527282,119160.0,119150.0,0.00564]
[1755183007767,0.71228324,119160.0,119150.0,0.00564]
[1755183008474,0.71328324,119160.0,119150.0,0.0004]
[1755183008691,1.37216204,119160.0,119150.0,0.0004]
[1755183008910,0.52531875,119140.0,119130.0,0.00309]
[1755183009123,0.608042,119140.0,119130.0,0.00524]
[1755183009343,0.72398344,119140.0,119130.0,0.00524]
[1755183010000,0.64621412,119140.0,119130.0,0.00524]
[1755183010216,0.64626355,119140.0,119130.0,0.00524]
[1755183010431,0.64626355,119140.0,119130.0,0.17312382]
[1755183010655,0.64626355,119140.0,119130.0,0.00524]
[1755183010849,0.4609448,119140.0,119130.0,0.17412382]
[1755183011120,0.62881453,119140.0,119130.0,0.17412382]
[1755183011330,0.4609448,119140.0,119130.0,0.17512382]
[1755183011753,0.62881453,119140.0,119130.0,0.17512382]
[1755183011952,0.64132799,119140.0,119130.0,0.17512382]
[1755183012855,0.64132799,119140.0,119130.0,0.00724]
[1755183013071,0.47345826,119140.0,119130.0,0.17617632]
[1755183013284,0.47345826,119140.0,119130.0,0.17512382]
[1755183013509,0.03822155,119140.0,119130.0,0.17512382]
[1755183013960,4.943e-05,119140.0,119130.0,0.84587158]
[1755183014390,4.943e-05,119140.0,119130.0,0.85794341]
[1755183014609,4.943e-05,119140.0,119130.0,1.00732852]
[1755183014823,4.943e-05,119140.0,119130.0,1.00632852]
[1755183015093,4.943e-05,119140.0,119130.0,0.93059483]
[1755183015293,4.943e-05,119140.0,119130.0,0.92859483]
[1755183015729,4.943e-05,119140.0,119130.0,0.92659483]
[1755183015947,4.943e-05,119140.0,119130.0,0.92859483]
[1755183016583,4.943e-05,119140.0,119130.0,0.28633707]
[1755183016785,4.943e-05,119140.0,119130.0,0.92859483]
[1755183017208,4.943e-05,119140.0,119130.0,0.20561382]
[1755183017421,0.16791916,119140.0,119130.0,0.17712382]
[1755183017629,0.16791916,119140.0,119130.0,0.00924]
[1755183017849,0.20305752,119140.0,119130.0,0.00924]
[1755183018067,0.28578077,119140.0,119130.0,0.15512]
[1755183018290,0.30138897,119140.0,119130.0,0.15297]
[1755183018507,0.65883799,119140.0,119130.0,0.004]
[1755183018717,0.65883799,119140.0,119130.0,0.14988]
[1755183019411,0.68572899,119140.0,119130.0,0.002]
[1755183019641,1.32798675,119140.0,119130.0,0.002]
[1755183019856,1.36523134,119140.0,119130.0,0.002]
[1755183020068,0.72297358,119140.0,119130.0,0.002]
[1755183020288,0.16788382,119130.0,119120.0,0.14584]
[1755183020515,0.34870677,119130.0,119120.0,0.14584]
[1755183020737,0.26622234,119130.0,119120.0,0.14584]
[1755183020950,0.26622234,119130.0,119120.0,0.14893]
[1755183021166,0.28367136,119130.0,119120.0,0.14893]
[1755183021614,0.62367136,119130.0,119120.0,0.14893]
[1755183021825,0.62367136,119130.0,119120.0,0.31682791]
[1755183022040,0.43833852,119130.0,119120.0,0.31682791]
[1755183022253,0.10233852,119130.0,119120.0,0.31682791]
[1755183022471,0.33759575,119130.0,119120.0,0.14893]
[1755183022693,0.33397257,119130.0,119120.0,0.31682791]
[1755183022933,0.16608875,119130.0,119120.0,0.31682791]
[1755183023148,0.01861527,119130.0,119120.0,0.95908567]
[1755183023383,0.01561527,119130.0,119120.0,0.95908567]
[1755183023824,0.01761527,119130.0,119120.0,0.95908567]
[1755183024045,0.01561527,119130.0,119120.0,0.95908567]
[1755183024275,0.01661527,119130.0,119120.0,0.95908567]
[1755183024486,0.01761527,119130.0,119120.0,0.95908567]
[1755183024703,0.01561527,119130.0,119120.0,0.95908567]
[1755183024927,0.01561527,119130.0,119120.0,1.0415701]
[1755183025167,0.01561527,119130.0,119120.0,0.96008567]
[1755183025830,0.01561527,119130.0,119120.0,0.31782791]
[1755183026075,0.01561527,119130.0,119120.0,0.96008567]
[1755183026280,0.01561527,119130.0,119120.0,1.07129892]
[1755183026743,0.01561527,119130.0,119120.0,1.1092625]
[1755183026957,4.943e-05,119140.0,119130.0,0.16788382]
[1755183027162,0.01569584,119140.0,119130.0,0.92444483]
[1755183027607,1e-08,119140.0,119130.0,1.32262244]
[1755183027819,0.06766186,119190.0,119180.0,0.16781339]
[1755183028039,0.06780986,119190.0,119180.0,0.31650339]
[1755183028238,0.06780986,119190.0,119180.0,0.95876115]
[1755183028657,0.06780986,119190.0,119180.0,0.31650339]
[1755183028866,0.23560917,119190.0,119180.0,0.31650339]
[1755183029305,0.23560917,119190.0,119180.0,0.14556]
[1755183029759,0.16782747,119170.0,119160.0,0.17930017]
[1755183029990,0.16782747,119170.0,119160.0,0.14865]
[1755183030204,0.16782747,119170.0,119150.0,0.36910469]
[1755183030205,0.16784155,119160.0,119150.0,0.36910469]
[1755183030416,0.16784155,119160.0,119150.0,0.51469564]
[1755183030633,0.16784155,119160.0,119150.0,0.37222564]
[1755183030849,0.16784155,119160.0,119150.0,0.51465564]
[1755183031340,0.16784155,119160.0,119150.0,0.20128]
[1755183031554,0.5905648,119160.0,119150.0,0.3468]
[1755183031759,0.16785564,119150.0,119140.0,0.16786885]
[1755183031961,0.16785564,119150.0,119140.0,0.31334885]
[1755183032185,0.16685564,119150.0,119140.0,0.14548]
[1755183032612,0.16786973,119140.0,119120.0,0.16789791]
[1755183032826,0.16788382,119130.0,119120.0,0.16789791]
[1755183033031,0.16788382,119130.0,119120.0,0.31696215]
[1755183033654,0.16788382,119130.0,119120.0,0.00358424]
[1755183033890,0.60805609,119130.0,119120.0,0.00049424]
[1755183034072,0.70185413,119130.0,119120.0,0.14593424]
[1755183034219,0.62053973,119130.0,119120.0,0.14593424]
[1755183034658,0.62223973,119130.0,119120.0,0.14589424]
[1755183034871,0.62053973,119130.0,119120.0,0.14589424]
[1755183035842,0.60309071,119130.0,119120.0,0.14589424]
[1755183036042,0.60309071,119130.0,119120.0,0.14689424]
[1755183036435,0.60309071,119130.0,119120.0,0.14589424]
[1755183037205,0.42272325,119130.0,119120.0,0.14907424]
[1755183037552,0.42272325,119130.0,119120.0,0.31697215]
[1755183038648,0.34,119140.0,119130.0,0.16788027]
[1755183038850,0.17623362,119160.0,119140.0,0.16786973]
[1755183039029,0.17623362,119160.0,119140.0,0.17104973]
[1755183039030,0.08272325,119150.0,119140.0,0.17104973]
[1755183039232,0.42272325,119150.0,119140.0,0.31636973]
[1755183039563,0.43839273,119150.0,119140.0,0.31636973]
[1755183040575,0.01566948,119150.0,119140.0,0.31636973]
[1755183041805,0.01766948,119150.0,119140.0,0.31636973]
[1755183042078,0.18814786,119150.0,119140.0,0.31318973]
[1755183042271,0.01766948,119150.0,119140.0,0.31318973]
[1755183042402,0.02029222,119150.0,119140.0,0.31318973]
[1755183042804,0.02029222,119150.0,119140.0,0.14532]
[1755183042805,0.27087111,119150.0,119140.0,0.14532]
[1755183043002,0.26824837,119150.0,119140.0,0.14532]
[1755183043414,0.16786973,119140.0,119120.0,0.17157215]
[1755183043610,0.26626246,119140.0,119130.0,0.1452]
[1755183045038,0.26726246,119140.0,119130.0,0.1452]
[1755183045236,0.26626246,119140.0,119130.0,0.1452]
[1755183046674,0.26626246,119140.0,119130.0,0.31508382]
[1755183046896,0.09839273,119140.0,119130.0,0.31408382]
[1755183047103,0.09939273,119140.0,119130.0,0.31726382]
[1755183047277,0.09939273,119140.0,119130.0,0.31626382]
[1755183047471,0.26726246,119140.0,119130.0,0.31626382]
[1755183048245,0.08372325,119140.0,119130.0,0.31626382]
[1755183048456,0.25159298,119140.0,119130.0,0.31626382]
[1755183049033,0.26726464,119140.0,119130.0,0.1452]
[1755183049214,0.29594429,119140.0,119130.0,0.31308382]
[1755183049842,0.25159298,119140.0,119130.0,0.31308382]
[1755183050962,0.08372325,119140.0,119130.0,0.31308382]
[1755183051157,0.08372325,119140.0,119130.0,0.31626382]
[1755183052262,0.001,119140.0,119130.0,0.95852158]
[1755183052464,0.001,119140.0,119130.0,0.96052158]
[1755183052634,0.001,119140.0,119130.0,0.31826382]
[1755183052874,0.34,119150.0,119140.0,0.16786973]
[1755183053110,0.42272325,119150.0,119140.0,0.16786973]
[1755183053323,0.42272325,119150.0,119140.0,0.17104973]
[1755183054362,0.42272325,119150.0,119140.0,0.17204973]
[1755183056100,0.59057889,119150.0,119140.0,0.16986973]
[1755183056748,0.59057889,119150.0,119140.0,0.17304973]
[1755183056974,0.42272325,119150.0,119140.0,0.17304973]
[1755183057198,0.41433325,119150.0,119140.0,0.17500973]
[1755183057844,0.08272325,119150.0,119140.0,0.17500973]
[1755183058086,0.08534599,119150.0,119140.0,0.17500973]
[1755183058564,0.25518163,119150.0,119140.0,0.14688]
[1755183058814,0.25255889,119150.0,119140.0,0.14688]
[1755183059046,0.29580692,119150.0,119140.0,0.002]
[1755183059275,0.59255889,119150.0,119140.0,0.14688]
[1755183059781,0.59255889,119150.0,119140.0,0.14588]
[1755183059996,0.59255889,119150.0,119140.0,0.14488]
[1755183060210,0.59255889,119150.0,119140.0,0.001]
[1755183060425,0.67674332,119150.0,119140.0,0.14684]
[1755183060675,0.67504332,119150.0,119140.0,0.14484]
[1755183060939,0.59255889,119150.0,119140.0,0.1478]
[1755183061149,0.59255889,119150.0,119140.0,0.14584]
[1755183062624,0.59255889,119150.0,119140.0,0.14484]
[1755183063033,0.59255889,119150.0,119140.0,0.14584]
[1755183063460,0.59255889,119150.0,119140.0,0.14484]
[1755183063664,0.66980692,119150.0,119140.0,0.14584]
[1755183063878,0.66980692,119150.0,119140.0,0.14684]
[1755183064095,0.68895594,119150.0,119140.0,0.14684]
[1755183064308,0.61000791,119150.0,119140.0,0.14684]
[1755183065221,0.61170791,119150.0,119140.0,0.14684]
[1755183065434,0.61170791,119150.0,119140.0,0.14584]
[1755183066062,0.61170791,119150.0,119140.0,0.14484]
[1755183066270,0.59255889,119150.0,119140.0,0.14684]
[1755183066484,0.59057889,119150.0,119140.0,0.15198]
[1755183066783,0.59255889,119150.0,119140.0,0.15198]
[1755183066982,0.59255889,119150.0,119140.0,0.15298]
[1755183067218,0.58357889,119150.0,119140.0,0.14998]
[1755183067423,0.58555889,119150.0,119140.0,0.15098]
[1755183067602,0.58357889,119150.0,119140.0,0.15099]
[1755183068342,0.58357889,119150.0,119140.0,0.15199]
[1755183068343,0.58555889,119150.0,119140.0,0.15199]
[1755183069004,0.58357889,119150.0,119140.0,0.15199]
[1755183069224,0.41572325,119150.0,119140.0,0.32091179]
[1755183069450,0.17992127,119160.0,119150.0,0.16785564]
[1755183069676,0.17992127,119160.0,119150.0,0.17300564]
[1755183069677,0.70554452,119160.0,119150.0,0.17300564]
[1755183069939,1.04554452,119160.0,119150.0,0.00515]
[1755183070148,0.16785564,119150.0,119140.0,0.14896]
[1755183070354,0.16785564,119150.0,119140.0,0.15099]
[1755183070562,0.16990564,119150.0,119140.0,0.14999]
[1755183070763,0.16990564,119150.0,119140.0,0.14484]
[1755183070973,0.16786973,119140.0,119130.0,0.00312]
[1755183071195,0.16786973,119140.0,119130.0,0.14975]
[1755183072019,0.16686973,119140.0,119130.0,0.31763382]
[1755183072247,0.16686973,119140.0,119130.0,0.15075]
[1755183072872,0.16686973,119140.0,119130.0,0.00715]
[1755183073088,0.28510552,119140.0,119130.0,0.002]
[1755183073299,0.59163298,119140.0,119130.0,0.14656]
[1755183073730,0.59163298,119140.0,119130.0,0.14652]
[1755183073731,0.608682,119140.0,119130.0,0.14652]
[1755183074759,1.25093976,119140.0,119130.0,0.14652]
[1755183074967,1.25093976,119140.0,119130.0,0.001]
[1755183075178,0.18533284,119130.0,119120.0,0.14501424]
[1755183075383,0.26975609,119130.0,119120.0,0.14501424]
[1755183075590,0.26975609,119130.0,119120.0,0.00049424]
[1755183076160,0.91201385,119130.0,119120.0,0.00049424]
[1755183076724,0.27175609,119130.0,119120.0,0.00049424]
[1755183076933,0.35424052,119130.0,119120.0,0.00049424]
[1755183077585,0.99649828,119130.0,119120.0,0.00049424]
[1755183078234,0.35424052,119130.0,119120.0,0.00049424]
[1755183078924,0.99749828,119130.0,119120.0,0.00049424]
[1755183079640,0.99947828,119130.0,119120.0,0.00049424]
[1755183080077,1.40714014,119130.0,119120.0,1e-08]
[1755183080294,0.69722052,119130.0,119120.0,1e-08]
[1755183080506,1.33947828,119130.0,119120.0,1e-08]
[1755183081392,1.33747828,119130.0,119120.0,1e-08]
[1755183081606,0.35744902,119090.0,119080.0,0.0004]
[1755183081813,1.2625043,119090.0,119080.0,0.0004]
[1755183082025,0.50795431,119080.0,119070.0,1e-08]
[1755183082226,1.25208434,119080.0,119070.0,1e-08]
[1755183082463,0.60982658,119080.0,119070.0,1e-08]
[1755183082675,1.25208434,119080.0,119070.0,1e-08]
[1755183082876,1.47896877,119080.0,119070.0,1e-08]
[1755183083087,1.47896877,119080.0,119070.0,4.944e-05]
[1755183083298,1.51620571,119080.0,119070.0,4.944e-05]
[1755183083767,1.51920571,119080.0,119070.0,4.944e-05]
[1755183083982,0.52543154,119060.0,119050.0,0.2444]
[1755183084194,0.69063922,119060.0,119050.0,0.2444]
[1755183085482,0.69063922,119060.0,119050.0,0.1]
[1755183085660,1.33389698,119060.0,119050.0,0.1]
[1755183086275,1.33659698,119060.0,119050.0,0.1]
[1755183086735,1.33489698,119060.0,119050.0,0.1]
[1755183087309,0.69263922,119060.0,119050.0,0.1]
[1755183087868,0.61015479,119060.0,119050.0,0.10515]
[1755183088072,0.59270577,119060.0,119050.0,0.10312]
[1755183088280,0.62192597,119060.0,119050.0,0.10312]
[1755183088690,0.63755377,119060.0,119050.0,0.10312]
[1755183089369,0.63755377,119060.0,119050.0,0.1]
[1755183089602,0.78770006,119060.0,119050.0,0.24432]
[1755183089847,1.42995782,119060.0,119050.0,0.1]
[1755183090076,0.78770006,119060.0,119050.0,0.1]
[1755183091237,1.42995782,119060.0,119050.0,0.1]
[1755183091954,1.57597782,119060.0,119050.0,0.1]
[1755183092215,1.57597782,119060.0,119030.0,0.14432]
[1755183092216,0.18545977,119040.0,119030.0,0.14432]
[1755183092471,0.52547388,119030.0,119020.0,0.1478]
[1755183092741,0.62382493,119030.0,119020.0,0.14983]
[1755183093221,0.62580493,119030.0,119020.0,0.00555]
[1755183093457,0.62580493,119030.0,119020.0,0.14464]
[1755183093695,0.6259527,119030.0,119020.0,0.14464]
[1755183093980,0.70843713,119030.0,119020.0,0.0004]
[1755183094476,1.49465489,119030.0,119020.0,1e-08]
[1755183094971,1.49565489,119030.0,119020.0,1e-08]
[1755183095212,1.49665489,119030.0,119020.0,1e-08]
[1755183095464,0.6634254,119030.0,119020.0,1e-08]
[1755183095726,0.6634254,119030.0,119020.0,0.00312001]
[1755183096009,0.64597638,119030.0,119020.0,0.14736001]
[1755183096285,0.64797638,119030.0,119020.0,0.14736001]
[1755183096619,0.64697638,119030.0,119020.0,0.14424001]
[1755183096882,1.38916759,119030.0,119020.0,0.14424001]
[1755183097141,0.74690983,119030.0,119020.0,0.14424001]
[1755183097382,0.74690983,119030.0,119020.0,1e-08]
[1755183097383,1.53920238,119030.0,119020.0,1e-08]
[1755183097632,1.53720026,119030.0,119020.0,1e-08]
[1755183097917,1.54220026,119030.0,119020.0,1e-08]
[1755183098164,1.54020026,119030.0,119020.0,1e-08]
[1755183098430,0.89486864,119030.0,119020.0,1e-08]
[1755183098668,0.74683593,119030.0,119020.0,0.00316001]
[1755183098910,0.74683593,119030.0,119020.0,1e-08]
[1755183099673,0.74683593,119030.0,119020.0,0.00316001]
[1755183100401,1.38909369,119030.0,119020.0,1e-08]
[1755183100643,1.5390856,119030.0,119020.0,1e-08]
[1755183101122,0.89852784,119030.0,119020.0,1e-08]
[1755183101342,1.5407856,119030.0,119020.0,1e-08]
[1755183101551,0.525488,119020.0,119010.0,0.0181089]
[1755183101786,1.35020734,119020.0,119010.0,0.0181089]
[1755183102003,1.34850734,119020.0,119010.0,0.0181089]
[1755183102229,0.62376515,119020.0,119010.0,0.0212689]
[1755183102665,0.28376515,119020.0,119010.0,0.1653889]
[1755183103394,0.62376515,119020.0,119010.0,0.0212689]
[1755183103616,0.62376515,119020.0,119010.0,0.0181089]
[1755183103833,1.34850734,119020.0,119010.0,0.0181089]
[1755183104045,0.85036958,119020.0,119010.0,0.0181089]
[1755183104259,0.85036958,119020.0,119010.0,0.0212689]
[1755183104443,0.76988515,119020.0,119010.0,0.0212689]
[1755183104707,0.77088515,119020.0,119010.0,0.0212689]
[1755183105132,0.62676515,119020.0,119010.0,0.0212689]
[1755183105353,0.65198515,119020.0,119010.0,0.0212689]
[1755183105571,0.73446958,119020.0,119010.0,0.0162689]
[1755183106642,0.65198515,119020.0,119010.0,0.0162689]
[1755183106856,1.36190477,119020.0,119010.0,0.0131089]
[1755183107125,0.1680531,119010.0,119000.0,0.0175]
[1755183107337,0.90860608,119010.0,119000.0,0.0175]
[1755183107561,1.05856825,119010.0,119000.0,0.0175]
[1755183107776,1.14105268,119010.0,119000.0,0.0175]
[1755183107987,0.49879492,119010.0,119000.0,0.0175]
[1755183108210,1.14105268,119010.0,119000.0,0.00742122]
[1755183108415,0.49879492,119010.0,119000.0,0.00742122]
[1755183108616,1.14105268,119010.0,119000.0,0.00742122]
[1755183108824,1.14205268,119010.0,119000.0,0.00742122]
[1755183109866,1.48375268,119010.0,119000.0,0.00742122]
[1755183110052,0.35744902,118980.0,118970.0,0.0004]
[1755183110290,1.31865051,118980.0,118970.0,0.0004]
[1755183110711,1.32221051,118980.0,118970.0,0.0004]
[1755183110998,1.32806078,118980.0,118970.0,0.0004]
[1755183111422,0.67995275,118980.0,118970.0,0.0004]
[1755183111629,0.6916859,118980.0,118970.0,0.0004]
[1755183111839,1.33983078,118980.0,118970.0,0.0004]
[1755183112074,1.40949264,118980.0,118970.0,0.0004]
[1755183112249,1.41049264,118980.0,118970.0,0.0004]
[1755183112486,1.44910598,118980.0,118970.0,0.0004]
[1755183112696,1.44910598,118980.0,118970.0,1e-08]
[1755183112919,0.52555862,118970.0,118960.0,1e-08]
[1755183113124,1.45818417,118970.0,118960.0,1e-08]
[1755183113333,1.45988417,118970.0,118960.0,1e-08]
[1755183113712,1.45818417,118970.0,118960.0,1e-08]
[1755183113922,1.45233167,118970.0,118960.0,1e-08]
[1755183114124,1.45818542,118970.0,118960.0,1e-08]
[1755183114331,1.45233167,118970.0,118960.0,1e-08]
[1755183114573,0.66795391,118970.0,118960.0,1e-08]
[1755183114802,0.62588846,118970.0,118960.0,0.00316001]
[1755183115019,0.62788846,118970.0,118960.0,0.00316001]
[1755183115248,1.41426622,118970.0,118960.0,1e-08]
[1755183115469,1.42182234,118970.0,118960.0,1e-08]
[1755183115682,1.41982234,118970.0,118960.0,1e-08]
[1755183115913,1.50030677,118970.0,118960.0,1e-08]
[1755183116123,1.50130677,118970.0,118960.0,1e-08]
[1755183116332,1.50060677,118970.0,118960.0,1e-08]
[1755183117144,1.50230677,118970.0,118960.0,1e-08]
[1755183117374,1.50030677,118970.0,118960.0,1e-08]
[1755183117783,1.50430677,118970.0,118960.0,1e-08]
[1755183118200,1.50430677,118970.0,118950.0,0.0004]
[1755183118201,0.52557275,118960.0,118950.0,1e-08]
[1755183118420,0.6718334,118960.0,118950.0,1e-08]
[1755183118646,1.31409116,118960.0,118950.0,1e-08]
[1755183118857,1.3140914,118960.0,118950.0,1e-08]
[1755183119065,0.67183364,118960.0,118950.0,1e-08]
[1755183119497,0.63176819,118960.0,118950.0,0.00316001]
[1755183119703,1.27402595,118960.0,118950.0,0.00316001]
[1755183119930,0.63176819,118960.0,118950.0,0.00316001]
[1755183120155,0.62590259,118960.0,118950.0,0.00316001]
[1755183120358,0.60845357,118960.0,118950.0,0.00316001]
[1755183120566,0.26845357,118960.0,118950.0,0.00316001]
[1755183120784,0.690938,118960.0,118950.0,0.00316001]
[1755183120994,0.3742542,118960.0,118950.0,0.00316001]
[1755183121182,0.70838702,118960.0,118950.0,0.00316001]
[1755183121403,0.62590259,118960.0,118950.0,0.00316001]
[1755183121719,0.62490259,118960.0,118950.0,0.00316001]
[1755183123121,1.05035357,118960.0,118950.0,0.17129788]
[1755183123330,1.04955357,118960.0,118950.0,0.00316001]
[1755183123805,1.04855357,118960.0,118950.0,0.00316001]
[1755183124018,1.14848702,118960.0,118950.0,0.00316001]
[1755183124430,1.14948702,118960.0,118950.0,0.00316001]
[1755183124847,1.06700259,118960.0,118950.0,0.00416001]
[1755183125049,1.06600259,118960.0,118950.0,0.00416001]
[1755183125259,1.06600259,118960.0,118950.0,0.17229788]
[1755183125465,0.09832984,118960.0,118950.0,0.17229788]
[1755183125669,0.43832984,118960.0,118950.0,0.17229788]
[1755183126962,0.43832984,118960.0,118950.0,0.17129788]
[1755183127181,0.43832984,118960.0,118950.0,0.17329788]
[1755183127421,0.01560659,118960.0,118950.0,0.17329788]
[1755183127627,0.01560659,118960.0,118950.0,0.20317788]
[1755183128061,0.01560659,118960.0,118950.0,0.20117788]
[1755183128499,0.01560659,118960.0,118950.0,0.20317788]
[1755183128922,0.01560659,118960.0,118950.0,0.34733788]
[1755183129329,0.01560659,118960.0,118950.0,0.98959564]
[1755183129523,0.01560659,118960.0,118950.0,0.34733788]
[1755183129730,0.01560659,118960.0,118950.0,0.98959564]
[1755183130176,0.01560659,118960.0,118950.0,0.34733788]
[1755183130334,0.01560659,118960.0,118950.0,0.98959564]
[1755183130535,0.01560659,118960.0,118950.0,0.34733788]
[1755183130740,0.01560659,118960.0,118950.0,0.34533788]
[1755183131048,0.01560659,118960.0,118950.0,0.99259564]
[1755183131226,0.01560659,118960.0,118950.0,0.99959564]
[1755183131424,0.01560659,118960.0,118950.0,0.35733788]
[1755183131624,0.01560659,118960.0,118950.0,0.34333788]
[1755183131953,0.18373032,118960.0,118950.0,0.32545788]
[1755183132154,0.25139218,118960.0,118950.0,0.32545788]
[1755183132685,0.08326845,118960.0,118950.0,0.32545788]
[1755183133084,0.25139218,118960.0,118950.0,0.31945788]
[1755183133286,0.25139218,118960.0,118950.0,0.31545788]
[1755183133462,0.25139218,118960.0,118950.0,0.31845788]
[1755183133674,0.08326845,118960.0,118950.0,0.32045788]
[1755183133920,0.33411543,118960.0,118950.0,0.00816001]
[1755183134077,0.33411543,118960.0,118950.0,0.15028001]
[1755183134275,0.33411543,118960.0,118950.0,0.14728001]
[1755183134477,0.33411543,118960.0,118950.0,0.15028001]
[1755183134696,0.33411543,118960.0,118950.0,0.31841788]
[1755183135116,0.33411543,118960.0,118950.0,0.15028001]
[1755183135312,0.41659986,118960.0,118950.0,0.15028001]
[1755183135524,0.41659986,118960.0,118950.0,0.31841788]
[1755183135735,0.33411543,118960.0,118950.0,0.15028001]
[1755183136170,0.33411543,118960.0,118950.0,0.14828001]
[1755183136377,0.33411543,118960.0,118950.0,0.31641788]
[1755183136591,0.33411543,118960.0,118950.0,0.31841788]
[1755183137206,0.33411543,118960.0,118950.0,0.31939788]
[1755183137410,0.33411543,118960.0,118950.0,0.32039788]
[1755183138528,0.41659986,118960.0,118950.0,0.15226001]
[1755183138731,0.41659986,118960.0,118950.0,0.32039788]
[1755183138946,0.33411543,118960.0,118950.0,0.32039788]
[1755183140830,0.33411543,118960.0,118950.0,0.15226001]
[1755183141256,0.26645357,118960.0,118950.0,0.31939788]
[1755183141738,0.26645357,118960.0,118950.0,0.32139788]
[1755183142152,0.09832984,118960.0,118950.0,0.32139788]
[1755183142376,0.01560659,118960.0,118950.0,1.04414007]
[1755183142582,0.01560659,118960.0,118950.0,0.96165564]
[1755183142827,0.01560659,118960.0,118950.0,0.32139788]
[1755183143701,0.01560659,118960.0,118950.0,0.96365564]
[1755183144176,0.01560659,118960.0,118950.0,1.00105035]
[1755183144402,0.01560659,118960.0,118950.0,0.85693035]
[1755183144654,0.01560659,118960.0,118950.0,0.99905035]
[1755183145105,0.01560659,118960.0,118950.0,1.00105035]
[1755183145628,0.01560659,118960.0,118950.0,0.99905035]
[1755183145916,0.01560659,118960.0,118950.0,1.00105035]
[1755183146063,0.59589656,118980.0,118970.0,0.1681096]
[1755183146270,0.69433862,118980.0,118970.0,0.3141696]
[1755183146471,0.51783707,118980.0,118970.0,0.3173496]
[1755183146674,0.68593254,118980.0,118970.0,0.3173496]
[1755183147515,0.68693254,118980.0,118970.0,0.3173496]
[1755183149232,0.68693254,118980.0,118970.0,0.14924]
[1755183150023,0.68693254,118980.0,118970.0,0.3173496]
[1755183150441,0.68693254,118980.0,118970.0,0.14924]
[1755183151375,0.68693254,118980.0,118970.0,0.3173496]
[1755183151919,0.4354564,118980.0,118970.0,0.3173496]
[1755183152110,0.60255187,118980.0,118970.0,0.3173496]
[1755183152311,0.60255187,118980.0,118970.0,0.3193496]
[1755183152510,0.60255187,118980.0,118970.0,0.15124]
[1755183152711,0.60255187,118980.0,118970.0,0.3193496]
[1755183152914,0.4344564,118980.0,118970.0,0.3213496]
[1755183153287,0.60255187,118980.0,118970.0,0.3213496]
[1755183153436,0.60453187,118980.0,118970.0,0.15124]
[1755183153884,0.60453187,118980.0,118970.0,0.15324]
[1755183154111,0.60453187,118980.0,118970.0,0.14804]
[1755183154527,0.60453187,118980.0,118970.0,0.004]
[1755183154722,0.60453187,118980.0,118970.0,0.14804]
[1755183154940,0.60453187,118980.0,118970.0,0.31720915]
[1755183155153,0.60453187,118980.0,118970.0,0.3213096]
[1755183155399,0.60453187,118980.0,118970.0,0.1532]
[1755183155574,0.60453187,118980.0,118970.0,0.15425955]
[1755183155729,0.60453187,118980.0,118970.0,0.32236915]
[1755183155942,0.60453187,118980.0,118970.0,0.1532]
[1755183156171,0.60453187,118980.0,118970.0,0.15425955]
[1755183156373,0.6826336,118980.0,118970.0,0.15425955]
[1755183156582,0.6826336,118980.0,118970.0,0.1532]
[1755183156816,0.6826336,118980.0,118970.0,0.14804]
[1755183157980,0.60453187,118980.0,118970.0,0.14804]
[1755183158540,0.60453187,118980.0,118970.0,0.3161496]
[1755183158779,0.60453187,118980.0,118970.0,0.3213696]
[1755183159006,0.4344564,118980.0,118970.0,0.3213696]
[1755183159875,0.60255187,118980.0,118970.0,0.3213696]
[1755183160091,0.4344564,118980.0,118970.0,0.3213696]
[1755183160318,0.60255187,118980.0,118970.0,0.3213696]
[1755183165111,0.60255187,118980.0,118970.0,0.3703188]
[1755183165293,0.60255187,118980.0,118970.0,0.3213696]
[1755183166417,1.04545187,118980.0,118970.0,0.3213696]
[1755183166913,0.8773564,118980.0,118970.0,0.3213696]
[1755183167146,0.4429,118990.0,118980.0,0.16808524]
[1755183167362,1.03385229,118990.0,118980.0,0.17330524]
[1755183167587,0.59095229,118990.0,118980.0,0.17330524]
[1755183168119,0.68638681,118990.0,118980.0,0.17331547]
[1755183168336,0.60390238,118990.0,118980.0,0.17331547]
[1755183168536,0.60390238,118990.0,118980.0,0.17431547]
[1755183168758,0.60180238,118990.0,118980.0,0.17431547]
[1755183168972,0.42372103,118990.0,118980.0,0.17431547]
[1755183169188,0.42372103,118990.0,118980.0,0.2597999]
[1755183169590,0.42372103,118990.0,118980.0,0.17631547]
[1755183169798,0.41287094,118990.0,118980.0,0.17931547]
[1755183169978,0.00014769,118990.0,118980.0,0.82157323]
[1755183170742,0.00014769,118990.0,118980.0,0.17931547]
[1755183178720,0.00014769,118990.0,118980.0,0.72798427]
[1755183180419,0.16822904,118990.0,118980.0,0.17931547]
[1755183180634,0.25293229,118990.0,118980.0,0.31785547]
[1755183180867,0.80330109,118990.0,118980.0,0.14976]
[1755183181076,0.25463229,118990.0,118980.0,0.14976]
[1755183181276,0.25463229,118990.0,118980.0,0.32100458]
[1755183181277,0.25293229,118990.0,118980.0,0.32100458]
[1755183181541,0.25293229,118990.0,118980.0,0.14976]
[1755183181850,0.25293229,118990.0,118980.0,0.14676]
[1755183182029,0.25293229,118990.0,118980.0,0.31185547]
[1755183182179,0.25293229,118990.0,118980.0,0.31685547]
[1755183182381,0.25293229,118990.0,118980.0,0.32207547]
[1755183182586,0.25293229,118990.0,118980.0,0.31707547]
[1755183182792,0.25095229,118990.0,118980.0,0.31907547]
[1755183184029,0.25095229,118990.0,118980.0,0.32107547]
[1755183184651,0.08287094,118990.0,118980.0,0.86974427]
[1755183184859,0.08287094,118990.0,118980.0,0.9522287]
[1755183185277,0.08287094,118990.0,118980.0,0.86974427]
[1755183185693,0.25095229,118990.0,118980.0,0.86974427]
[1755183185901,0.08287094,118990.0,118980.0,0.86974427]
[1755183186346,0.08287094,118990.0,118980.0,0.32107547]
[1755183186554,0.25095229,118990.0,118980.0,0.32107547]
[1755183187492,0.25293229,118990.0,118980.0,0.32107547]